bitfinex/quotes_SOLUSD_20260314
["timestamp","ask_amount","ask_price","bid_price","bid_amount"]
[1773470245527,0.79892931,87.359,87.331,0.83369107]
[1773470245824,0.79892931,87.376,87.341,0.83369107]
[1773470246026,0.79892931,87.385,87.353,0.83369107]
[1773470246929,0.79892931,87.369,87.335,0.83369107]
[1773470247234,0.79892931,87.369,87.335,11.45016277]
[1773470247428,0.79892931,87.369,87.336,0.83369107]
[1773470248132,0.79892931,87.367,87.341,0.83369107]
[1773470248727,11.44571654,87.369,87.35,3.71575958]
[1773470249028,0.79892931,87.373,87.351,0.83369107]
[1773470250219,28.60826007,87.388,87.35,3.71575958]
[1773470250220,0.79892931,87.384,87.353,0.83369107]
[1773470250548,0.79892931,87.384,87.361,0.83369107]
[1773470250832,0.79892931,87.384,87.36,3.71575958]
[1773470251037,0.79892931,87.384,87.353,0.83369107]
[1773470252619,3.71575958,87.39,87.329,7.3]
[1773470252620,0.79892931,87.399,87.361,0.83369107]
[1773470253030,0.79892931,87.399,87.329,7.3]
[1773470253031,2.95506722,87.366,87.286,12.3343902]
[1773470253216,3.71575958,87.32,87.291,0.87779923]
[1773470253531,7.3,87.332,87.261,11.45987325]
[1773470253732,0.79892931,87.295,87.202,11.46762688]
[1773470253911,7.3,87.331,87.202,40.1366941]
[1773470253912,0.79892931,87.249,87.202,40.1366941]
[1773470254117,0.79892931,87.229,87.202,11.46762688]
[1773470254315,0.79892931,87.229,87.129,45.90868124]
[1773470254316,0.79892931,87.229,87.18,3.71575958]
[1773470254536,0.16780278,87.209,87.169,11.47196824]
[1773470254715,3.71575958,87.22,87.191,0.87503871]
[1773470254918,11.46276321,87.239,87.201,0.87503871]
[1773470255119,3.71575958,87.23,87.19,3.71575958]
[1773470255335,11.46276321,87.239,87.19,3.71575958]
[1773470255641,41.20611904,87.249,87.22,8.87450125]
[1773470256037,16.17450125,87.27,87.23,8.87450125]
[1773470256038,8.87450125,87.27,87.23,8.87450125]
[1773470256336,16.77475418,87.281,87.24,8.87450125]
[1773470256517,20.3318798,87.28,87.241,11.46250042]
[1773470256720,8.87450125,87.27,87.241,11.46250042]
[1773470256921,34.34,87.279,87.241,11.46250042]
[1773470257930,8.87450125,87.27,87.241,11.46250042]
[1773470258329,18.75764378,87.278,87.24,8.87450125]
[1773470258528,7.3,87.278,87.25,8.87450125]
[1773470258845,8.4833676,87.279,87.241,0.87503871]
[1773470259532,8.4833676,87.279,87.25,8.87450125]
[1773470260432,11.45647756,87.287,87.251,11.46118669]
[1773470260638,8.87450125,87.28,87.251,11.46118669]
[1773470261335,11.45647756,87.287,87.251,11.46118669]
[1773470261838,8.87450125,87.29,87.251,11.46118669]
[1773470262931,8.87450125,87.29,87.252,0.87503871]
[1773470263840,34.34,87.289,87.234,11.46342022]
[1773470264016,8.87450125,87.28,87.235,0.87503871]
[1773470264437,8.87450125,87.28,87.241,0.87503871]
[1773470264438,34.34,87.279,87.241,0.87503871]
[1773470265037,11.4576411,87.278,87.204,0.87503871]
[1773470265224,11.4576411,87.278,87.221,0.87503871]
[1773470265225,34.34,87.269,87.221,0.87503871]
[1773470266230,34.34,87.269,87.231,0.87503871]
[1773470267235,34.34,87.276,87.241,0.87503871]
[1773470268422,34.34,87.277,87.242,11.46236904]
[1773470268744,34.34,87.277,87.243,0.87503871]
[1773470270545,11.45703241,87.283,87.245,0.87503871]
[1773470270847,34.34,87.269,87.233,0.87503871]
[1773470271039,34.34,87.269,87.232,11.46358819]
[1773470271540,8.87450125,87.26,87.232,11.46358819]
[1773470272545,8.87450125,87.26,87.226,11.46440331]
[1773470272748,34.34,87.259,87.226,11.46440331]
[1773470273336,8.87450125,87.25,87.216,0.87503871]
[1773470273547,34.34,87.259,87.216,0.87503871]
[1773470273738,34.34,87.267,87.231,0.87503871]
[1773470274130,34.34,87.259,87.212,0.87503871]
[1773470274527,40.10633908,87.268,87.22,8.87450125]
[1773470274528,11.45895402,87.268,87.22,8.87450125]
[1773470274845,34.34,87.269,87.241,0.87503871]
[1773470275348,34.34,87.268,87.241,0.87503871]
[1773470275644,34.34,87.284,87.241,0.87503871]
[1773470276628,8.87450125,87.28,87.241,0.87503871]
[1773470276829,8.87450125,87.28,87.24,8.87450125]
[1773470276830,11.45742996,87.28,87.243,0.87503871]
[1773470277751,11.45680665,87.285,87.251,0.87503871]
[1773470279046,8.87450125,87.28,87.252,11.46105533]
[1773470279244,8.87450125,87.28,87.253,0.87503871]
[1773470279745,34.34,87.279,87.232,0.87503871]
[1773470280253,8.87450125,87.27,87.232,0.87503871]
[1773470280847,8.87450125,87.27,87.182,4.82477569]
[1773470280848,34.34,87.249,87.217,0.87503871]
[1773470281048,8.87450125,87.23,87.209,0.87503871]
[1773470281353,34.34,87.229,87.191,0.87503871]
[1773470282552,34.34,87.239,87.201,0.87503871]
[1773470283050,8.87450125,87.22,87.182,0.87503871]
[1773470283254,8.87450125,87.21,87.182,0.87503871]
[1773470283463,34.34,87.229,87.191,0.87503871]
[1773470284346,8.87450125,87.23,87.191,0.87503871]
[1773470285342,8.87450125,87.23,87.193,0.87503871]
[1773470285664,11.46320819,87.236,87.201,0.87503871]
[1773470286668,8.87450125,87.24,87.201,0.87503871]
[1773470286959,11.46276321,87.239,87.201,0.87503871]
[1773470287153,11.46217382,87.244,87.201,0.87503871]
[1773470287358,11.46217382,87.244,87.203,0.87503871]
[1773470287560,11.46217382,87.244,87.21,8.87450125]
[1773470287861,11.46217382,87.244,87.211,0.87503871]
[1773470288648,11.46144985,87.249,87.211,0.87503871]
[1773470289148,20.33459159,87.26,87.221,0.87503871]
[1773470289352,20.33459159,87.26,87.223,0.87503871]
[1773470289772,11.45938397,87.265,87.223,0.87503871]
[1773470290069,11.45938397,87.265,87.231,0.87503871]
[1773470290260,45.79527859,87.296,87.251,0.87503871]
[1773470290565,8.87450125,87.28,87.251,0.87503871]
[1773470290954,8.87450125,87.29,87.251,0.87503871]
[1773470291145,8.87450125,87.3,87.262,0.87503871]
[1773470291343,11.45363979,87.309,87.271,0.87503871]
[1773470291949,8.87450125,87.28,87.256,0.87503871]
[1773470292552,8.87450125,87.29,87.256,0.87503871]
[1773470293557,11.45619722,87.289,87.258,0.87503871]
[1773470294367,0.60330121,87.288,87.229,28.65991627]
[1773470294558,8.87450125,87.27,87.231,11.46381446]
[1773470295667,11.45882272,87.269,87.231,11.46381446]
[1773470296460,8.87450125,87.25,87.211,0.78037809]
[1773470296867,0.59237591,87.259,87.221,0.78037809]
[1773470297865,11.46026725,87.258,87.223,0.78037809]
[1773470298350,40.11093538,87.258,87.223,0.78037809]
[1773470298551,8.87450125,87.25,87.223,0.78037809]
[1773470300969,11.46144941,87.249,87.223,0.78037809]
[1773470301177,0.56107456,87.248,87.212,0.70255158]
[1773470301552,0.56107456,87.239,87.204,0.70255158]
[1773470301757,8.87826803,87.23,87.204,0.70255158]
[1773470302372,9.4343334,87.23,87.204,0.70255158]
[1773470302565,0.55606537,87.229,87.194,0.70255158]
[1773470302972,0.55111371,87.227,87.19,8.87826803]
[1773470303358,0.55111371,87.219,87.178,0.70255158]
[1773470303577,0.55111371,87.219,87.12,0.2]
[1773470303578,0.55111371,87.226,87.18,9.58081961]
[1773470303758,0.54621894,87.209,87.181,0.70255158]
[1773470303957,0.54621894,87.218,87.181,0.70255158]
[1773470304260,40.12473059,87.228,87.181,0.70255158]
[1773470304261,8.87826803,87.21,87.181,0.70255158]
[1773470304663,0.54138038,87.227,87.172,0.70255158]
[1773470304972,8.87826803,87.21,87.172,0.70255158]
[1773470305194,0.54138038,87.208,87.172,0.70255158]
[1773470305580,8.87826803,87.19,87.164,0.70255158]
[1773470306157,8.87826803,87.19,87.168,1e-08]
[1773470306360,0.5365974,87.189,87.168,1e-08]
[1773470307056,97.46700453,87.209,87.146,0.70255158]
[1773470307057,0.53186935,87.187,87.146,0.70255158]
[1773470307259,0.53186935,87.169,87.138,0.70255158]
[1773470307678,40.14313895,87.188,87.151,0.70255158]
[1773470307679,0.53186935,87.185,87.151,0.70255158]
[1773470308376,0.52719562,87.179,87.151,0.70255158]
[1773470308580,11.46946827,87.188,87.151,0.70255158]
[1773470308773,11.46946827,87.188,87.161,0.70255158]
[1773470309164,11.46802142,87.199,87.162,0.70255158]
[1773470309474,0.52257556,87.189,87.153,0.70255158]
[1773470309981,0.51800857,87.198,87.153,0.70255158]
[1773470310188,0.51800857,87.198,87.143,40.16386857]
[1773470310189,0.51800857,87.198,87.161,0.70255158]
[1773470310388,8.87826803,87.19,87.161,0.70255158]
[1773470310679,11.46802142,87.199,87.161,0.70255158]
[1773470311282,0.51349404,87.198,87.161,0.70255158]
[1773470311869,11.46730901,87.205,87.171,0.70255158]
[1773470312583,11.46730901,87.205,87.15,0.70255158]
[1773470312584,0.50903136,87.199,87.15,0.70255158]
[1773470312780,8.87826803,87.19,87.151,0.70255158]
[1773470312976,8.87826803,87.2,87.161,0.70255158]
[1773470313384,11.46802142,87.199,87.163,0.70255158]
[1773470314596,11.46828445,87.197,87.163,0.70255158]
[1773470314883,11.46828445,87.197,87.16,8.87826803]
[1773470314884,11.46828445,87.197,87.165,0.70255158]
[1773470316787,11.46828445,87.197,87.167,0.70255158]
[1773470318193,0.48331134,87.196,87.167,0.70255158]
[1773470318887,11.46828445,87.197,87.169,0.70255158]
[1773470319400,8.87826803,87.19,87.157,0.70255158]
[1773470319590,0.47919533,87.188,87.157,0.70255158]
[1773470319895,34.34,87.189,87.157,0.70255158]
[1773470320106,11.46828445,87.197,87.161,0.70255158]
[1773470320472,11.46828445,87.197,87.171,0.70255158]
[1773470321089,11.46762688,87.202,87.171,12.17418144]
[1773470321389,34.34,87.199,87.172,0.70255158]
[1773470322380,34.34,87.201,87.172,0.70255158]
[1773470322594,11.46762688,87.202,87.172,0.70255158]
[1773470322893,34.34,87.201,87.172,0.70255158]
[1773470323694,0.46319869,87.206,87.174,0.70255158]
[1773470323695,34.34,87.199,87.174,0.70255158]
[1773470324394,45.80685695,87.208,87.174,0.70255158]
[1773470325094,0.45547334,87.198,87.165,0.70255158]
[1773470325693,8.87826803,87.19,87.165,0.70255158]
[1773470325887,0.45167708,87.196,87.165,0.70255158]
[1773470326088,34.79167708,87.196,87.167,0.70255158]
[1773470326396,34.34,87.196,87.167,0.70255158]
[1773470327684,40.13991627,87.195,87.167,0.70255158]
[1773470328284,11.4685475,87.195,87.167,0.70255158]
[1773470329578,0.43692312,87.188,87.16,0.6479282]
[1773470329787,11.46959982,87.187,87.16,0.6479282]
[1773470330896,34.7697979,87.2,87.162,0.6479282]
[1773470331102,0.4297979,87.199,87.162,0.6479282]
[1773470332885,34.34,87.189,87.162,0.6479282]
[1773470333091,0.41941405,87.188,87.162,0.6479282]
[1773470333504,0.41941405,87.188,87.153,0.64888874]
[1773470334501,0.41603197,87.185,87.155,0.64888874]
[1773470335098,0.41268874,87.178,87.146,0.64888874]
[1773470336002,0.20938391,87.159,87.094,0.93880255]
[1773470336202,0.20938391,87.159,87.092,0.64888874]
[1773470336203,7.3,87.158,87.092,0.64888874]
[1773470336392,11.47855232,87.119,87.092,0.64888874]
[1773470336786,28.68419844,87.156,87.1,8.87826803]
[1773470336989,8.87826803,87.13,87.101,0.64888874]
[1773470337188,8.87826803,87.13,87.072,7.3]
[1773470337189,8.87826803,87.13,87.091,0.64888874]
[1773470337389,7.3,87.129,87.091,0.64888874]
[1773470337608,34.34,87.128,87.091,0.64888874]
[1773470338004,8.87826803,87.12,87.091,0.64888874]
[1773470338321,8.87826803,87.11,87.084,0.64888874]
[1773470338614,11.47987004,87.109,87.084,0.64888874]
[1773470338786,11.47987004,87.109,87.086,0.64888874]
[1773470339892,18.77804251,87.123,87.091,0.64888874]
[1773470340087,11.47591778,87.139,87.111,0.64888874]
[1773470340296,11.47591778,87.139,87.085,40.19061835]
[1773470340297,14.03327356,87.146,87.121,0.64888874]
[1773470340915,14.03327356,87.146,87.097,7.3]
[1773470340916,5.37769147,87.146,87.131,0.64888874]
[1773470341214,5.37769147,87.146,87.097,7.3]
[1773470341215,0.5,87.14,87.118,0.64888874]
[1773470341895,0.5,87.14,87.121,0.64888874]
[1773470342496,0.5,87.14,87.123,0.64888874]
[1773470343809,0.5,87.14,87.12,8.87826803]
[1773470343810,0.5,87.14,87.131,0.64888874]
[1773470345899,5.1208073,87.146,87.131,0.64888874]
[1773470346395,4.12384826,87.146,87.133,0.64888874]
[1773470346611,3.37612898,87.146,87.133,0.64888874]
[1773470346811,28.6768573,87.179,87.141,0.26675937]
[1773470347122,0.59858725,87.176,87.141,0.26675937]
[1773470347430,1.14818471,87.175,87.141,0.26675937]
[1773470348094,0.59858725,87.173,87.141,0.26675937]
[1773470348296,1.14818471,87.173,87.141,0.26675937]
[1773470348502,1.14818471,87.173,87.142,11.47552271]
[1773470348503,0.59858725,87.172,87.142,11.47552271]
[1773470348904,0.59858725,87.172,87.143,0.25171448]
[1773470349231,0.59858725,87.177,87.15,9.12998251]
[1773470349393,11.47043427,87.181,87.151,0.25171448]
[1773470350103,0.59858725,87.169,87.13,8.87826803]
[1773470350309,0.59858725,87.169,87.131,0.2443214]
[1773470350915,0.59858725,87.169,87.14,8.87826803]
[1773470351113,0.59858725,87.169,87.131,0.2443214]
[1773470351800,0.59858725,87.169,87.14,8.87826803]
[1773470352001,10.02645274,87.18,87.12,7.3]
[1773470352002,0.59858725,87.179,87.15,8.87826803]
[1773470352205,0.59858725,87.179,87.151,0.23467704]
[1773470352206,11.47078391,87.178,87.151,0.23467704]
[1773470352517,11.47017505,87.183,87.16,8.87826803]
[1773470352821,11.47017505,87.183,87.151,0.23467704]
[1773470353322,0.59858725,87.181,87.151,0.23467704]
[1773470353508,0.59858725,87.179,87.151,0.23467704]
[1773470354016,0.59858725,87.167,87.13,8.87826803]
[1773470354225,0.59858725,87.167,87.131,0.23008486]
[1773470354411,11.47209985,87.168,87.102,11.48079263]
[1773470354412,0.59858725,87.149,87.102,11.48079263]
[1773470354610,0.59858725,87.149,87.11,8.87826803]
[1773470355512,0.59858725,87.149,87.103,0.23008486]
[1773470356208,8.87826803,87.15,87.08,8.87826803]
[1773470356209,0.59858725,87.119,87.08,8.87826803]
[1773470357810,0.59858725,87.117,87.08,8.87826803]
[1773470358919,0.59858725,87.115,87.08,8.87826803]
[1773470359322,0.59858725,87.114,87.08,8.87826803]
[1773470360423,0.59858725,87.112,87.081,11.48356128]
[1773470360623,0.59858725,87.112,87.08,20.57883389]
[1773470360926,0.59858725,87.112,87.08,20.5767284]
[1773470361121,0.59858725,87.112,87.081,0.21274131]
[1773470362030,0.59858725,87.112,87.08,8.87826803]
[1773470362727,0.57694943,87.11,87.08,8.87826803]
[1773470363030,0.57694943,87.11,87.08,20.36190479]
[1773470363616,0.57694943,87.11,87.08,20.38726059]
[1773470365136,0.57694943,87.108,87.08,20.38726059]
[1773470365318,0.57694943,87.108,87.08,8.90362383]
[1773470366117,0.57694943,87.108,87.081,11.48356128]
[1773470366342,11.47987004,87.109,87.082,0.20268792]
[1773470366941,0.57694943,87.108,87.082,0.20268792]
[1773470367645,11.48013362,87.107,87.082,0.20268792]
[1773470368146,0.57694943,87.134,87.101,0.19882637]
[1773470368318,1.14818471,87.133,87.101,0.19882637]
[1773470368516,1.14818471,87.133,87.083,40.19154139]
[1773470368517,11.47585749,87.14,87.111,0.19882637]
[1773470368731,12.6240422,87.14,87.111,0.19882637]
[1773470369140,11.47585749,87.14,87.111,0.19882637]
[1773470369635,0.57694943,87.141,87.112,11.47947469]
[1773470369825,0.57694943,87.14,87.112,11.47947469]
[1773470370227,11.47473263,87.148,87.121,0.19505302]
[1773470370425,0.57694943,87.147,87.121,0.19505302]
[1773470371020,0.57694943,87.147,87.12,8.90362383]
[1773470371949,0.57694943,87.145,87.112,11.67267348]
[1773470373044,0.57694943,87.143,87.113,0.18955398]
[1773470375156,0.57694943,87.141,87.114,11.47921114]
[1773470376140,6.95089408,87.149,87.121,0.18424224]
[1773470376539,6.95089408,87.149,87.114,11.47921114]
[1773470376540,6.95089408,87.149,87.131,0.18424224]
[1773470377340,6.76838297,87.149,87.14,8.90362383]
[1773470377642,6.76838297,87.149,87.132,11.47683973]
[1773470379742,6.76838297,87.149,87.12,8.90362383]
[1773470380648,0.57694943,87.148,87.117,47.47585545]
[1773470380821,0.57694943,87.148,87.12,8.90362383]
[1773470381025,6.76838297,87.149,87.12,8.90362383]
[1773470381647,6.76838297,87.149,87.121,11.47828881]
[1773470381947,6.76838297,87.149,87.13,8.90362383]
[1773470384251,6.76838297,87.149,87.131,11.47697145]
[1773470384960,0.57694943,87.165,87.131,11.47697145]
[1773470386539,0.57694943,87.165,87.131,40.16940009]
[1773470387238,3.73446108,87.17,87.14,3.73446108]
[1773470387950,1.14818471,87.173,87.14,3.73446108]
[1773470388150,0.57444624,87.159,87.131,11.47697145]
[1773470388452,0.57444624,87.159,87.121,11.47828881]
[1773470388633,0.57444624,87.159,87.121,40.17401085]
[1773470389560,0.57444624,87.159,87.13,3.73446108]
[1773470391371,0.57444624,87.159,87.131,11.47697145]
[1773470391868,0.57444624,87.157,87.131,11.47697145]
[1773470393458,0.57444624,87.157,87.121,11.47828881]
[1773470393656,0.57444624,87.155,87.121,40.17401085]
[1773470396268,0.57444624,87.155,87.13,3.73446108]
[1773470396450,0.57444624,87.166,87.13,3.73446108]
[1773470397273,1.72263095,87.18,87.15,3.73446108]
[1773470397456,0.57444624,87.178,87.15,3.73446108]
[1773470397850,1.14818471,87.184,87.14,3.73446108]
[1773470397851,11.47091549,87.177,87.14,3.73446108]
[1773470398059,0.57444624,87.176,87.14,3.73446108]
[1773470399168,0.57444624,87.159,87.104,28.70132255]
[1773470399477,0.57444624,87.159,87.12,3.73446108]
[1773470400469,0.57444624,87.159,87.121,40.17401085]
[1773470400773,0.57444624,87.157,87.121,40.17401085]
[1773470400956,0.57444624,87.157,87.13,3.73446108]
[1773470401160,0.57444624,87.201,87.15,3.73446108]
[1773470401356,0.57444624,87.201,87.121,40.17401085]
[1773470401357,0.57444624,87.2,87.17,3.73446108]
[1773470401569,6.92377483,87.204,87.181,0.52587997]
[1773470401784,0.55555776,87.199,87.16,11.03446108]
[1773470401952,0.55555776,87.189,87.156,7.3]
[1773470402154,0.55555776,87.189,87.16,3.73446108]
[1773470402659,0.55555776,87.187,87.16,3.73446108]
[1773470402972,0.55555776,87.179,87.15,3.73446108]
[1773470403271,0.55555776,87.179,87.144,11.47525934]
[1773470403661,0.55555776,87.179,87.15,3.73446108]
[1773470403859,11.46769228,87.202,87.161,0.52587997]
[1773470404062,6.92377483,87.204,87.171,0.52587997]
[1773470404272,6.92377483,87.204,87.17,3.73446108]
[1773470404273,6.92377483,87.204,87.181,0.52587997]
[1773470404471,3.73446108,87.22,87.147,2.95506722]
[1773470404472,11.46368305,87.232,87.193,0.52587997]
[1773470404675,3.73446108,87.23,87.193,0.52587997]
[1773470404875,3.73446108,87.22,87.193,0.52587997]
[1773470405371,3.73446108,87.22,87.183,0.52587997]
[1773470405977,0.55555776,87.219,87.183,0.52587997]
[1773470406171,0.55555776,87.219,87.19,3.73446108]
[1773470406555,0.55555776,87.218,87.191,11.46907364]
[1773470407081,7.3,87.242,87.191,11.46907364]
[1773470407082,0.55555776,87.24,87.21,4.26034105]
[1773470408178,11.46276321,87.239,87.211,11.9922204]
[1773470408376,0.55555776,87.249,87.221,0.52587997]
[1773470409166,0.55555776,87.249,87.23,3.73446108]
[1773470409462,0.55555776,87.257,87.23,3.73446108]
[1773470410462,0.55555776,87.256,87.231,11.46381446]
[1773470410674,0.55555776,87.256,87.23,3.73446108]
[1773470411684,0.55555776,87.256,87.226,0.52587997]
[1773470411885,0.55555776,87.256,87.221,11.96887352]
[1773470412084,0.55555776,87.256,87.222,0.50376838]
[1773470412462,0.55555776,87.256,87.231,0.50376838]
[1773470412986,0.55555776,87.348,87.242,0.48683418]
[1773470413288,137.37993564,87.349,87.253,0.48683418]
[1773470413289,0.55555776,87.289,87.253,0.48683418]
[1773470414493,0.55555776,87.269,87.24,3.73446108]
[1773470414790,0.55555776,87.269,87.232,0.47009449]
[1773470414994,0.55555776,87.269,87.24,3.73446108]
[1773470415174,0.55555776,87.269,87.24,4.18969262]
[1773470415378,0.55555776,87.269,87.241,0.45523154]
[1773470415780,0.55555776,87.276,87.241,0.45523154]
[1773470416787,0.55555776,87.287,87.251,0.45523154]
[1773470416992,12.0110908,87.295,87.261,0.45523154]
[1773470417765,0.55555776,87.295,87.271,0.45523154]
[1773470418065,0.55555776,87.309,87.271,0.45523154]
[1773470418868,0.55555776,87.309,87.281,0.45523154]
[1773470419063,3.73446108,87.32,87.272,11.45842882]
[1773470419064,3.73446108,87.31,87.273,0.52587997]
[1773470419485,3.73446108,87.3,87.265,11.98512363]
[1773470419679,7.3,87.338,87.26,11.4599632]
[1773470419680,8.86591278,87.29,87.26,11.4599632]
[1773470419989,8.86591278,87.29,87.261,0.52587997]
[1773470421093,7.3,87.315,87.205,0.490098]
[1773470421094,0.49781227,87.269,87.205,0.490098]
[1773470421290,8.86591278,87.22,87.205,0.490098]
[1773470421582,8.86591278,87.22,87.191,11.95917164]
[1773470421788,8.86591278,87.22,87.192,0.490098]
[1773470423290,7.27479353,87.272,87.18,0.690098]
[1773470423291,0.49781227,87.209,87.18,0.690098]
[1773470423467,0.49781227,87.209,87.181,0.490098]
[1773470423870,8.88301639,87.2,87.18,0.2]
[1773470424093,0.49781227,87.199,87.18,0.2]
[1773470424497,0.49781227,87.199,87.165,7.3]
[1773470424498,8.88301639,87.19,87.129,0.5]
[1773470424687,8.88301639,87.2,87.06,0.2]
[1773470424688,8.88301639,87.14,87.101,0.5]
[1773470424887,8.88301639,87.15,87.111,0.5]
[1773470425082,11.47591778,87.139,87.111,0.5]
[1773470425397,8.88301639,87.13,87.101,0.5]
[1773470427081,40.16571224,87.139,87.101,0.5]
[1773470427283,40.16571224,87.139,87.103,0.5]
[1773470427497,8.88301639,87.13,87.103,0.5]
[1773470427674,40.16571224,87.139,87.103,0.5]
[1773470427878,8.88301639,87.13,87.103,0.5]
[1773470428598,11.47591778,87.139,87.111,0.5]
[1773470429089,11.47511305,87.146,87.111,0.5]
[1773470429294,11.47511305,87.146,87.121,0.5]
[1773470429502,11.47328445,87.159,87.121,0.5]
[1773470431291,0.49781227,87.153,87.039,4.82477569]
[1773470431513,0.3,87.069,86.999,11.49438499]
[1773470431814,8.88301639,87.04,86.967,7.3]
[1773470432115,0.3,87.029,86.938,40.25857507]
[1773470432398,0.3,87.035,86.887,46.03667109]
[1773470432573,8.88301639,87.0,86.96,8.88301639]
[1773470432773,0.3,86.999,86.932,40.26135369]
[1773470432977,2.95506722,87.042,86.932,11.50324391]
[1773470432978,0.3,86.989,86.932,11.50324391]
[1773470433176,0.3,86.989,86.94,9.37311439]
[1773470433380,0.3,87.012,86.951,0.490098]
[1773470433592,11.48926738,87.038,86.991,0.490098]
[1773470433793,21.65466592,87.037,87.001,0.490098]
[1773470434299,21.65466592,87.037,87.0,8.88301639]
[1773470434300,0.3,87.036,87.0,8.88301639]
[1773470434686,0.30541598,87.019,86.943,0.490098]
[1773470434892,9.38301639,87.03,86.991,0.490098]
[1773470435287,8.43322749,87.037,87.012,0.490098]
[1773470435598,0.30541598,87.072,87.031,0.490098]
[1773470435806,0.30541598,87.072,87.04,8.88301639]
[1773470436096,0.49781227,87.059,87.02,8.88301639]
[1773470436300,0.49781227,87.059,87.03,8.88301639]
[1773470436619,0.49781227,87.094,87.05,9.37311439]
[1773470436898,7.3,87.127,87.081,0.490098]
[1773470437093,45.87133459,87.201,87.05,2.95506722]
[1773470437094,0.49781227,87.139,87.11,8.88301639]
[1773470437290,11.47326599,87.16,87.07,7.3]
[1773470437291,0.49781227,87.159,87.121,0.490098]
[1773470437483,0.49781227,87.139,87.11,8.88301639]
[1773470437877,0.49781227,87.15,87.111,0.490098]
[1773470438082,0.49781227,87.149,87.11,8.88301639]
[1773470438284,0.49781227,87.149,87.12,8.88301639]
[1773470438495,0.49781227,87.149,87.109,0.490098]
[1773470438700,0.49781227,87.139,87.1,8.88301639]
[1773470439191,0.49781227,87.139,87.11,8.88301639]
[1773470440109,11.47447372,87.15,87.12,8.88301639]
[1773470440400,11.47447372,87.15,87.112,0.490098]
[1773470440600,11.47447372,87.15,87.12,8.88301639]
[1773470440790,0.49781227,87.139,87.1,8.88301639]
[1773470440994,0.49781227,87.139,87.101,0.490098]
[1773470441184,0.49781227,87.139,87.11,8.88301639]
[1773470441380,11.47247821,87.166,87.131,0.490098]
[1773470441586,0.49781227,87.165,87.131,0.490098]
[1773470441781,0.49781227,87.165,87.14,8.88301639]
[1773470441981,0.49781227,87.165,87.13,8.88301639]
[1773470442404,6.97106534,87.169,87.15,8.88301639]
[1773470442703,11.46933672,87.189,87.149,0.490098]
[1773470443012,0.49781227,87.188,87.15,8.88301639]
[1773470443701,0.49781227,87.18,87.15,8.88301639]
[1773470444079,0.49781227,87.18,87.127,7.3]
[1773470444080,0.49781227,87.179,87.14,8.88301639]
[1773470444296,0.49781227,87.179,87.15,8.88301639]
[1773470444481,0.49781227,87.169,87.13,8.88301639]
[1773470444687,0.49781227,87.159,87.12,8.88301639]
[1773470444901,8.88301639,87.18,87.13,8.88301639]
[1773470445204,0.49781227,87.179,87.14,8.88301639]
[1773470445386,0.49781227,87.179,87.15,8.88301639]
[1773470445906,0.49781227,87.199,87.161,0.490098]
[1773470446105,0.49781227,87.199,87.16,8.88301639]
[1773470446409,0.49781227,87.199,87.15,0.490098]
[1773470446710,0.49781227,87.169,87.127,0.490098]
[1773470447007,9.42488722,87.16,87.127,0.490098]
[1773470447207,0.54187083,87.16,87.13,8.88301639]
[1773470447795,0.54187083,87.149,87.11,8.88301639]
[1773470448204,0.54187083,87.139,87.104,0.58684784]
[1773470448410,0.54187083,87.139,87.1,8.88301639]
[1773470448908,0.54187083,87.139,87.101,0.58684784]
[1773470449112,0.54187083,87.15,87.12,8.88301639]
[1773470449301,11.47328445,87.159,87.111,0.58684784]
[1773470449608,0.54187083,87.158,87.12,8.88301639]
[1773470449795,0.54187083,87.179,87.131,0.58684784]
[1773470450102,0.54187083,87.169,87.14,8.88301639]
[1773470450288,0.54187083,87.182,87.141,0.58684784]
[1773470450491,0.54187083,87.179,87.14,8.88301639]
[1773470450904,0.54187083,87.179,87.131,0.58684784]
[1773470451315,0.57063012,87.159,87.121,11.47828881]
[1773470451807,0.57063012,87.179,87.141,0.61819155]
[1773470452008,0.57063012,87.188,87.15,8.88301639]
[1773470453809,0.57063012,87.186,87.145,0.61819155]
[1773470454007,0.57063012,87.186,87.15,8.88301639]
[1773470454406,0.57063012,87.186,87.151,0.61819155]
[1773470455506,0.57063012,87.186,87.16,8.88301639]
[1773470455713,11.46891108,87.193,87.161,11.47302119]
[1773470455903,11.46891108,87.193,87.16,9.50120794]
[1773470456300,0.57063012,87.192,87.155,11.47369197]
[1773470457113,8.88301639,87.19,87.155,11.47369197]
[1773470457309,0.57063012,87.19,87.155,11.47369197]
[1773470458201,0.57063012,87.188,87.155,11.47369197]
[1773470460199,11.46959982,87.187,87.155,11.47369197]
[1773470460609,0.57063012,87.209,87.161,0.61819155]
[1773470460818,0.57063012,87.219,87.181,0.61819155]
[1773470461120,0.57063012,87.209,87.17,8.88301639]
[1773470461514,0.57063012,87.189,87.15,8.88301639]
[1773470461905,0.57063012,87.189,87.15,20.97567724]
[1773470462123,0.57063012,87.189,87.15,9.50120794]